Cogmind - Beta 15 *** ADVENTURER MODE // 2025.07.19 @ 14:13:29 Player: Drew_P_Bawls Result: Core destroyed Performance ------------- Evolutions (2) 1000 Regions Visited (3) 600 Robots Destroyed (32) 160 Value Destroyed (914) 914 Prototype IDs (2) 40 Alien Tech Used (0) 0 Bonus (0) 0 TOTAL SCORE: 2714 Bonus ------- None Cogmind --------- Core Integrity 0/550 Matter 172/300 Energy 186/200 System Corruption 0% Temperature Critical (762) Movement Core (900) Ox17 Location -8/Materials Parts ------- > --- POWER (3) -------- Micro Nuclear Core Micro Nuclear Core Micro Nuclear Core > --- PROPULSION (2) --- Armored Treads Carbon-fiber Leg > --- UTILITY (2) ------ Heavy Armor Plating > --- WEAPON (4) ------- Heavy Laser Heavy Laser Ion Cannon Improved Grenade Launcher > --- INVENTORY (5) ---- Improved Heat Sink Medium Storage Unit High-capacity Matter Pod (7) Core Shielding Improved Weapon Shielding Peak State ------------ > --- POWER ------------ Micro Nuclear Core Micro Nuclear Core Micro Nuclear Core > --- PROPULSION ------- Armored Treads Carbon-fiber Leg > --- UTILITY ---------- Heavy Armor Plating > --- WEAPON ----------- Heavy Laser Heavy Laser Improved Grenade Launcher Remote Datajack > --- INVENTORY -------- Improved Heat Sink High-capacity Matter Pod Improved Weapon Shielding Ion Cannon [Rating: 40] Favorites ----------- Power Light Ion Engine Engine Light Ion Engine Power Core Micro Nuclear Core Propulsion Aluminum Leg Treads Armored Treads Leg Aluminum Leg Utility Heavy Armor Plating Device Structural Scanner Storage High-capacity Matter Pod Protection Heavy Armor Plating Weapon Assault Rifle Energy Gun Heavy Laser Energy Cannon Ion Cannon Ballistic Gun Assault Rifle Launcher Grenade Launcher Special Weapon Remote Datajack Build | -11 -10 -10 -8 ------- Run | Yrd Mat Sub Mat Slots Evolved 4 | . . . 4 Power 2 | . . . 2 Propulsion . | . . . . Utility . | . . . . Weapon 2 | . . . 2 Parts Attached 28 | 6 3 1 18 Power 6 | 2 . . 4 Engine 3 | 2 . . 1 Core 3 | . . . 3 Reactor . | . . . . Propulsion 6 | 2 . . 4 Treads 1 | . . . 1 Leg 5 | 2 . . 3 Wheel . | . . . . Hover . | . . . . Flight . | . . . . Utility 7 | . 2 1 4 Device 2 | . 1 . 1 Storage 1 | . . . 1 Processor . | . . . . Hackware . | . . . . Protection 4 | . 1 1 2 Artifact . | . . . . Weapon 9 | 2 1 . 6 Energy Gun 2 | . . . 2 Energy Cannon 1 | . . . 1 Ballistic Gun 3 | 2 . . 1 Ballistic Cannon . | . . . . Launcher 2 | . 1 . 1 Special Weapon 1 | . . . 1 Impact Weapon . | . . . . Slashing Weapon . | . . . . Piercing Weapon . | . . . . Special Melee Weapon . | . . . . Unidentified Prototypes . | . . . . Parts Lost 10 | . 1 . 9 Power 3 | . 1 . 2 Propulsion 2 | . . . 2 Utility 2 | . . . 2 Weapon 3 | . . . 3 Highest Loss Streak 4 | . 1 . 4 To Critical Strikes . | . . . . Average Backups 3 | 3 3 3 4 Power . | . 1 . . Propulsion . | 2 . . . Utility 1 | . . 2 3 Weapon . | 1 2 1 . Tool/Special . | . . . . Unused Backups 12 | 2 6 . 4 Power . | . . . . Propulsion 3 | 2 1 . . Utility 4 | . . . 4 Weapon 4 | . 4 . . Tool/Special 1 | . 1 . . Average Slot Usage (%) 71 | . 78 78 66 Engine 7 | . 12 6 4 Core 5 | . . . 10 Treads 2 | . . . 5 Leg 19 | . 28 28 12 Device 2 | . 6 1 . Protection 7 | . 3 14 8 Energy Gun 3 | . . . 6 Energy Cannon 2 | . . . 4 Ballistic Gun 11 | . 17 14 6 Launcher 9 | . 10 14 7 Peak Build Rating 40 | 5 7 9 40 Average Rating 12 | 4 5 8 21 On Entrance 5 | . 5 6 9 Naked Turns 1 | . . . 1 Heaviest Build 53 | 6 12 26 53 Greatest Support 20 | 20 20 20 20 Greatest Overweight (x) 17 | . . 1 17 Average Overweight (x) . | . . . 1 Largest Inventory Capacity 5 | 5 5 5 5 Average Capacity 5 | 5 5 5 5 Most Carried 5 | 5 5 5 5 Average Carried 3 | 3 3 3 4 Final Capacity 5 | 5 5 5 5 Final Carried 5 | 4 5 3 5 Class Distribution -------------------- 66% | Mutant 31% | Tank Dominant Class ---------------- Mutant | -10/Materials Mutant | -10/Subcaves Tank | -8/Materials Resources | -11 -10 -10 -8 ----------- Run | Yrd Mat Sub Mat Matter Collected 741 | 270 179 72 220 Remotely . | . . . . Salvage Created 1146 | 56 274 102 714 Parts 63 | 3 19 7 34 Haulers Intercepted 2 | . 1 . 1 Recyclers Shooed 2 | . . . 2 Parts Field Recycled . | . . . . Retrieved Matter . | . . . . Parts Self-Destructed 6 | . . 6 . Prevented . | . . . . Kills | -11 -10 -10 -8 ------- Run | Yrd Mat Sub Mat Combat Hostiles Destroyed 22 | 1 8 3 10 Melee 1 | . . . 1 Guns 6 | 1 . 1 4 Cannons 1 | . . . 1 AOE 14 | . 8 2 4 Classes Destroyed 9 | 2 3 1 3 Worker 1 | . . . 1 Builder 1 | . . . 1 Tunneler 2 | 1 . . 1 Hauler 2 | . 1 . 1 Recycler 4 | . 1 . 3 Swarmer 3 | . 3 . . Grunt 14 | 1 5 . 8 Sentry 2 | . . . 2 Subdweller 3 | . . 3 . Best Kill Streak 9 | 2 4 2 9 Combat Bots Only 3 | 1 3 2 3 Max Kills in Single Turn 3 | 1 2 1 3 Gunslinging . | . . . . Exploded 2 | . 2 1 2 Melee 1 | . . . 1 Uniques/NPCs Destroyed . | . . . . Combat | -11 -10 -10 -8 -------- Run | Yrd Mat Sub Mat Hostile Shots Fired 126 | 5 27 5 89 Missed 33 | 1 8 2 22 Hits 93 | 4 19 3 67 Projectile 93 | 4 19 3 67 Critical Strikes 2 | . . . 2 Damage Taken 1638 | 33 174 66 1365 Core 600 | . 6 . 594 Absorbed by Shields . | . . . . Ignored by Resistances 381 | 10 58 20 293 Core Remaining (%) 98 | 100 . 97 . Volleys Fired 58 | 5 18 4 31 Largest 4 | 2 2 2 4 Hottest 234 | 40 50 50 234 Shots Fired 105 | 10 27 8 60 Gun 78 | 10 18 4 46 Cannon 6 | . . . 6 Launcher 21 | . 9 4 8 Special . | . . . . Kinetic 63 | 10 18 4 31 Thermal 21 | . . . 21 Explosive 21 | . 9 4 8 Electromagnetic . | . . . . Robot Hit Streak 15 | 8 11 10 15 Robot Miss Streak 3 | . 2 . 3 Penetration Max . | . . . . Secondary Targets . | . . . . Shots Hit Robots 75 | 8 18 7 42 Core Hits 58 | 3 16 5 34 Critical Kills . | . . . . Critical Parts Destroyed . | . . . . Critical Strikes . | . . . . Melee Attacks . | . . . . Impact . | . . . . Slashing . | . . . . Piercing . | . . . . Sneak Attacks . | . . . . Combat Hostiles . | . . . . Follow-up Attacks . | . . . . Damage Inflicted 2310 | 79 708 317 1206 Guns 668 | 79 113 39 437 Cannons 118 | . . . 118 Explosions 1519 | . 595 278 646 Melee . | . . . . Ramming 5 | . . . 5 Kinetic 477 | 79 113 39 246 Thermal 309 | . . . 309 Explosive 1476 | . 595 278 603 Electromagnetic 43 | . . . 43 Impact . | . . . . Slashing . | . . . . Piercing . | . . . . Highest Corruption . | . . . . Average Corruption . | . . . . Corruption Purged . | . . . . Corruption Blocked . | . . . . Overload Shots . | . . . . Overflow Damage 10 | . . . 10 Projectiles . | . . . . Explosions 10 | . . . 10 Melee . | . . . . Knockbacks . | . . . . Impact . | . . . . Kinetic . | . . . . Secondary . | . . . . Self-Inflicted Damage 164 | . 42 19 103 Shots 10 | . 3 2 5 Rammed 3 | . . . 3 Targets Rammed 3 | . . . 3 Kicked . | . . . . Crushed . | . . . . Highest Temperature 862 | 12 2 . 862 Average Temperature 181 | 7 2 . 208 Received Heat Transfer 717 | 24 54 18 621 Effects 23 | . . . 23 Shutdowns 5 | . . . 5 Energy Bleed 1 | . . . 1 Interference 2 | . . . 2 Short Circuit 2 | . . . 2 Damage (minor) 1 | . . . 1 Damage (major) 9 | . . . 9 Damage (core) 3 | . . . 3 Siege Activations . | . . . . Martial Activations . | . . . . Shielding Activations . | . . . . Robots Disrupted . | . . . . Combat Hostiles . | . . . . Robots Corrupted . | . . . . Combat Hostiles . | . . . . Parts Fried . | . . . . Impact Corruptions . | . . . . Robots Melted . | . . . . Combat Hostiles . | . . . . Parts Melted . | . . . . Heat Transferred 555 | . . . 555 Parts Sabotaged . | . . . . Parts Stolen . | . . . . Parts Stripped . | . . . . Power Chain Reactions 1 | . . . 1 Alert | -11 -10 -10 -8 ------- Run | Yrd Mat Sub Mat Maximum Alert Level . | . . . . Low Security (%) 100 | 100 100 . 100 Level 1 . | . . . . Level 2 . | . . . . Level 3 . | . . . . Level 4 . | . . . . Level 5 . | . . . . High Security . | . . . . Max Security . | . . . . Peak Influence 151 | 25 151 . 99 Initial . | . . . . Average 34 | 2 46 . 39 Influence Increases 676 | 25 231 . 420 Destroy 0b10 Robot/C 380 | 20 160 . 200 Destroy 0b10 Robot/NC 50 | 5 10 . 35 Destroy Leader 64 | . 22 . 42 Disable Machine 36 | . . . 36 Destroy Structure 86 | . 39 . 47 Lose Combat Pursuer 60 | . . . 60 Influence Decreases 585 | 25 100 131 329 Entered New Map 73 | . . 73 . Time Decay 413 | 25 90 58 240 Lost Part 99 | . 10 . 89 Squads Dispatched 2 | . 1 . 1 Investigation 1 | . 1 . . Extermination . | . . . . Reinforcement 1 | . . . 1 Assault . | . . . . Garrison . | . . . . Intercept . | . . . . Searches Triggered . | . . . . Construction Impeded 1 | . . . 1 Haulers Reinforced . | . . . . Active Scanning Responses . | . . . . Cargo Convoy Interrupts . | . . . . Stealth | -11 -10 -10 -8 --------- Run | Yrd Mat Sub Mat Distress Signals 1 | . 1 . . Communications Jammed . | . . . . Distress Signals . | . . . . Times Spotted 34 | 1 11 3 19 Peak Tracking Total 5 | 1 4 2 5 Tactical Retreats 4 | . . . 4 Traps | -11 -10 -10 -8 ------- Run | Yrd Mat Sub Mat Traps Triggered 1 | . 1 . . Indirectly . | . . . . Trap Hack Attempts . | . . . . Triggered . | . . . . Disarmed . | . . . . Reprogrammed . | . . . . Reused . | . . . . Traps Extracted . | . . . . Installed . | . . . . Triggered . | . . . . Machines | -11 -10 -10 -8 ---------- Run | Yrd Mat Sub Mat Machines Disabled 6 | . 2 . 4 Max in Single Turn 3 | . 2 . 3 Machines Repaired . | . . . . Machines Dismantled . | . . . . Machines Sabotaged . | . . . . Overloaded Fab Kills . | . . . . Hacking | -11 -10 -10 -8 --------- Run | Yrd Mat Sub Mat Machines Accessed 3 | . 1 . 2 Terminals 3 | . 1 . 2 Fabricators . | . . . . Repair Stations . | . . . . Recycling Units . | . . . . Scanalyzers . | . . . . Garrison Access . | . . . . Total Hacks 8 | . 3 . 5 Successful 4 | . 1 . 3 Failed 4 | . 2 . 2 Catastrophic . | . . . . Database Lockouts . | . . . . Manual . | . . . . Terminals 8 | . 3 . 5 Fabricators . | . . . . Repair Stations . | . . . . Recycling Units . | . . . . Scanalyzers . | . . . . Garrison Access . | . . . . Terminal Hacks 4 | . 1 . 3 Prototype ID Bank 1 | . . . 1 Alert Level 2 | . 1 . 1 Patrol Status 1 | . . . 1 Fabricator Hacks . | . . . . Repair Station Hacks . | . . . . Recycling Unit Hacks . | . . . . Scanalyzer . | . . . . Garrison Access Hacks . | . . . . Unauthorized Hacks . | . . . . Terminals . | . . . . Fabricators . | . . . . Repair Stations . | . . . . Recycling Units . | . . . . Scanalyzers . | . . . . Garrison Access . | . . . . Data Cores Recovered . | . . . . Used . | . . . . Hacking Detections 1 | . 1 . . Full Trace Events . | . . . . Feedback Events . | . . . . Feedback Blocked . | . . . . Robot Schematics Acquired . | . . . . Robots Built . | . . . . Authchips . | . . . . Time . | . . . . Total Robot Build Rating . | . . . . Part Schematics Acquired . | . . . . Parts Built . | . . . . Authchips . | . . . . Time . | . . . . Total Part Build Rating . | . . . . Parts Repaired . | . . . . Time . | . . . . Parts Recycled . | . . . . Recycled Matter . | . . . . Retrieved Matter . | . . . . Retrieved Components . | . . . . Parts Scanalyzed . | . . . . Part Schematics Acquired . | . . . . Parts Damaged . | . . . . Bothacking | -11 -10 -10 -8 ------------ Run | Yrd Mat Sub Mat Used RIF Installer . | . . . . Robots Hacked . | . . . . Non-combat . | . . . . Combat . | . . . . Robot Hacks Applied . | . . . . Relay Couplers Released . | . . . . Fabnet Peak Effective % . | . . . . Robots Rewired . | . . . . Allies Hacked . | . . . . Hacks Repelled . | . . . . Allies | -11 -10 -10 -8 -------- Run | Yrd Mat Sub Mat Total Allies . | . . . . Largest Group . | . . . . Highest-Rated Group . | . . . . Highest-Rated Ally . | . . . . Total Orders . | . . . . Ally Attacks . | . . . . Total Damage . | . . . . Kills . | . . . . Allies Corrupted . | . . . . Allies Melted . | . . . . Intel | -11 -10 -10 -8 ------- Run | Yrd Mat Sub Mat Active Infowar (turns) 192 | . 153 5 34 Structural 158 | . 153 5 . Seismic 34 | . . . 34 Robot Analysis Total . | . . . . Derelict Logs Recovered . | . . . . Drone Launches . | . . . . Drone Recoveries . | . . . . Exploration | -11 -10 -10 -8 ------------- Run | Yrd Mat Sub Mat Turns Passed 1344 | 242 359 125 618 Spaces Moved 655 | 123 251 58 223 Core 34 | 33 . . 1 Treads 7 | . . . 7 Legs 614 | 90 251 58 215 Wheels . | . . . . Hover . | . . . . Flight . | . . . . Fastest Speed 50 | 50 120 120 120 Average Speed 156 | 101 120 187 219 Slowest Speed 900 | 120 120 190 900 Overloaded Moves . | . . . . Propulsion Burnouts . | . . . . Robots Hopped . | . . . . Potential Cave-ins . | . . . . Cave-ins Triggered . | . . . . Exploration Rate (%) 18 | 8 42 3 20 Regions Visited 3 Branch Regions 1 Pre-discovered Areas . | . . . . Known Exits Taken . | . . . . Unknown Exits Taken 3 | 1 1 1 . Scrap Searched . | . . . . Spaces Dug . | . . . . Terrain Destroyed 96 | . 37 13 46 Melee . | . . . . Projectile . | . . . . AOE 96 | . 37 13 46 Terrain Rammed 1 | . . . 1 Walls Destroyed . | . . . . Machines Disabled . | . . . . Actions | -11 -10 -10 -8 --------- Run | Yrd Mat Sub Mat Total 887 | 233 287 69 298 Wait 86 | 86 . . . Move 652 | 122 250 57 223 Hop . | . . . . Pick Up 36 | 11 9 2 14 Fast Attach 7 | . . . 7 Attach 19 | 5 3 2 9 Detach 2 | . 1 . 1 Swap 4 | 1 . . 3 Drop 19 | 3 6 4 6 Fire 58 | 5 18 4 31 Melee . | . . . . Ram 1 | . . . 1 Kick . | . . . . Crush 3 | . . . 3 Escape Stasis . | . . . . Rewire . | . . . . Trap . | . . . . Miscellaneous . | . . . . Route ------- -11/Scrapyard -10/Materials (discovered 2 exits: [*Min] / [*Sub]) -10/Subcaves -8/Materials History --------- Turn | Location | Event 2 | -11/Scrapyard | Met Revision 17 73 | -11/Scrapyard | Discovered new exit (range 8) 243 | -11/Scrapyard | Entered Materials 306 | -10/Materials | Build established: Mutant 482 | -10/Materials | Discovered new exit (range 10) 590 | -10/Materials | Discovered new exit (range 11) 602 | -10/Materials | Entered Subcaves 603 | -10/Subcaves | Approached by a straggling Scientist 628 | -10/Subcaves | Discovered new exit (range 8) 727 | -10/Subcaves | Entered Materials 727 | -8/Materials | Evolved 4 slots: Power x2, Weapon x2 968 | -8/Materials | Lost 4 parts (1p1u2w) 986 | -8/Materials | Core integrity fell below 50% 1006 | -8/Materials | Lost 4 parts (2n1u1w) 1342 | -8/Materials | Core integrity fell below 20% 1346 | -8/Materials | Core destroyed Last Messages --------------- U-05 Engineer lays Concrete. Power failure, Mic. Nuclear Core shutdown. U-05 Engineer lays Concrete. Overheating: Core damaged (-104). U-05 Engineer lays Concrete. U-05 Engineer builds a Wall. U-05 Engineer lays Concrete. Overheating: Broken Mic. Nuclear Core damaged (-18). Overheating: Hvy. Armor Plating damaged (-48). Overheating: Hvy. Laser damaged (-22). U-05 Engineer lays Concrete. Overheating: System interference. Hvy. Laser temporarily disabled. U-05 Engineer lays Concrete. Overheating: Broken Mic. Nuclear Core damaged (-4). U-05 Engineer lays Concrete. Overheating: Core damaged (-99). [Achievement: First Step to Greatness] Map ----- +----------------------------------------------------+ | ?????????????????????# ! ##### #!! ##??????? | | ?????????????????????# ## !==%=%* ????? | | ?????###################+## % %= ????? | | ?????# + !%% [%[ ????? | | ###### ####### = # +##???????? | | # ##???#" "" ""???????? | | # ###??#T ""% #### """ ?????????? | | + # #??#" """ #????""" ?????????? | | % # ####### """ #????? ??????????? | | # + #??????? ?????????? | | # ## % ####### #?????????????????? | | # ### ##### #????# #?????????????????? | | # #?# # ############# #?????????????????? | | # #?#### # #?????????????????? | | # #????# # #??##?????????????? | | # #????# # #? ?????????????? | | # #????# """ "" # # ??????????????? | | # #????# """ " # # ???????????????? | | # #????# """ " + ????????????????? | | # #????# % " #?????????????????? | | # #????########+#+######## #?????????????????? | | # #?????????## ###%#= #?????????????????? | | # #??????##### ## ##%! #?????????????????? | | # #??????# [ ! *!uu u#######???????????? | | # #??????# [ !%=*= u ?????????? | | # #??????#|| @ ####?????????????? | | # #??????# | # # ##????????????????? | | # #??????# ### ??????????????????? | | # #??????# * ### ###?? """""""???????????????? | | # #??????#####?# #???? """""""???????????????? | | # #????????????# #???? """"""????????????????? | | #####????????????# #?????""""""????????????????? | | ?????????????????# #?????""""??????????????????? | | ?????????????????# #????? ????????????????????? | | ?????????????????# #????? ????????????????????? | | ?????????????????# ####???#????????????????????? | | ?????????????????# #????????????????????????? | | ?????????????????# #????????????????????????? | | ?????????????######+###+##???????????????????????? | | ?????????????# ! #???????????????????????? | | ?????????????# #???????????????????????? | | ?????????????# """"""" #???????????????????????? | | ?????????????#/ """"""" |#???????????????????????? | | ?????????????# """"""" #???????????????????????? | | ?????????????# """"""" !#???????????????????????? | | ?????????????# ??"""""" #???????????????????????? | | ?????????????#????########???????????????????????? | | | | | | | +----------------------------------------------------+ Best States ------------- Heat Dissipation 31 Energy Generation 35 Energy Capacity 250 Matter Stores 317 Matter Capacity 500 Sight Range 16 Terrain Scan Density 10 Armor Coverage 800 Resistance: KI 20 Resistance: TH 20 Resistance: EX 20 Resistance: EM 20 Resistance: I 20 Resistance: S 20 Resistance: P 20 Evasion (%) 55 Recoil Reduction 1 Offensive Hacking 10 Item Schematics ----------------- None Robot Schematics ------------------ None Fabricated ------------ Nothing Repaired ---------- Nothing Alien Tech Used ----------------- None Achievements -------------- Crack Shot First Step to Greatness Fist Fight Loot Pinata Challenges ------------ None Game ------ Seed AngularLightpackDatajack Manual? 0 Play Time 00:34:16 Cumulative 0.5 hours Start 2025.07.19 @ 13:31:31 End 2025.07.19 @ 14:13:29 Sessions 1 Manual Loads 0 Difficulty Adventurer Special Mode None Game No. 1 Rogue 0 Adventurer 1 Explorer 0 Win Type - Total 0 Types 0/0/0/0/0/0/0/0/0/0 Lore% 0 Gallery% 1 Achievement% 1 Wizard Run 0 Options --------- Layout 1 ASCII 0 Keyboard 0 Movement Mouse Keybinds 0 Fullscreen 1 Font 24/Smallcaps Map View 50x35 Zoom Use 0% Tactical HUD 0 Map Filters NONE Filters NONE Steam 0 RUN: fd9fb7f7-49d5-4cf6-b85d-55d27a99241a